bitfinex/quotes_SOLUSD_20220212
["timestamp","ask_amount","ask_price","bid_price","bid_amount"]
[1644639443938,46.58074451,97.266,97.192,47.12545729]
[1644639444137,46.58074451,97.266,97.193,5.142]
[1644639444338,15.4338,97.26,97.193,5.142]
[1644639444542,5.142,97.259,97.192,47.12545729]
[1644639445540,15.4353,97.25,97.192,47.12545729]
[1644639445742,43.43355582,97.249,97.192,47.12545729]
[1644639445959,48.57555582,97.249,97.192,47.12545729]
[1644639446458,48.57555582,97.249,97.152,1.44474973]
[1644639446657,15.4377,97.24,97.144,5.144]
[1644639446857,5.144,97.239,97.141,5.144]
[1644639447056,5.144,97.239,97.14,15.4414]
[1644639447258,23.0439,97.238,97.141,47.31213654]
[1644639447458,28.1879,97.238,97.141,47.31213654]
[1644639448859,15.4419,97.21,97.141,47.31213654]
[1644639449059,5.144,97.209,97.141,47.31213654]
[1644639449460,5.144,97.214,97.141,47.31213654]
[1644639449660,5.144,97.208,97.141,47.31213654]
[1644639449860,5.144,97.214,97.141,47.31213654]
[1644639450059,5.144,97.207,97.141,47.31213654]
[1644639450260,5.144,97.214,97.141,47.31213654]
[1644639450863,43.41393443,97.199,97.141,47.31213654]
[1644639452162,5.144,97.198,97.141,47.31213654]
[1644639452565,43.41393443,97.199,97.141,47.31213654]
[1644639452966,15.4448,97.19,97.122,5.144]
[1644639453166,15.4448,97.19,97.095,5.146]
[1644639453366,43.41393443,97.199,97.093,23.2796]
[1644639453367,52.7848,97.189,97.093,23.2796]
[1644639453564,47.6388,97.189,97.093,23.2796]
[1644639453765,5.147,97.188,97.093,23.2796]
[1644639453963,5.147,97.188,97.094,46.34012794]
[1644639454166,15.4497,97.17,97.094,46.34012794]
[1644639454364,43.3193253,97.18,97.094,46.34012794]
[1644639454365,5.147,97.169,97.094,46.34012794]
[1644639454564,5.147,97.187,97.094,46.34012794]
[1644639454763,5.147,97.188,97.094,46.34012794]
[1644639455366,37.51765643,97.187,97.094,46.34012794]
[1644639455667,37.51765643,97.187,97.1,15.4474]
[1644639455668,15.4467,97.18,97.1,15.4474]
[1644639455869,5.147,97.179,97.1,15.4474]
[1644639456267,5.147,97.179,97.094,46.34012794]
[1644639456467,37.51765643,97.187,97.094,46.34012794]
[1644639456468,5.147,97.186,97.094,46.34012794]
[1644639457068,15.4481,97.17,97.094,46.34012794]
[1644639457370,40.98323273,97.169,97.094,46.34012794]
[1644639458769,15.4496,97.16,97.094,46.34012794]
[1644639458969,5.147,97.159,97.094,46.34012794]
[1644639460270,15.4496,97.16,97.095,5.147]
[1644639460871,24.6257,97.168,97.095,5.147]
[1644639461080,15.4479,97.18,97.1,15.4475]
[1644639461278,5.147,97.187,97.101,5.147]
[1644639461478,5.147,97.188,97.11,14.88]
[1644639461880,5.147,97.188,97.111,50.039233]
[1644639462881,5.147,97.188,97.12,15.4441]
[1644639463486,24.4405,97.189,97.121,5.146]
[1644639464684,5.146,97.188,97.12,15.4441]
[1644639465586,5.146,97.188,97.121,5.146]
[1644639465786,5.146,97.188,97.12,15.4441]
[1644639469692,24.4405,97.189,97.12,15.4441]
[1644639470292,5.146,97.197,97.12,15.4441]
[1644639470493,24.0175,97.198,97.12,15.4441]
[1644639470694,24.0175,97.198,97.122,1.44474973]
[1644639470894,24.0175,97.198,97.13,15.4424]
[1644639471097,24.0175,97.198,97.131,46.09292062]
[1644639471295,24.0175,97.198,97.132,5.144]
[1644639473193,15.4448,97.19,97.132,5.144]
[1644639473395,40.21413004,97.188,97.131,46.09292062]
[1644639473598,5.146,97.187,97.131,46.09292062]
[1644639473993,5.146,97.187,97.112,24.6623]
[1644639474196,23.3524,97.186,97.112,24.6623]
[1644639474394,5.146,97.185,97.112,24.6623]
[1644639474798,15.4465,97.18,97.112,24.6623]
[1644639474993,5.146,97.179,97.113,48.86673663]
[1644639475495,5.146,97.179,97.117,1.44474973]
[1644639475695,15.4465,97.18,97.119,1.44474973]
[1644639475895,5.146,97.179,97.119,1.44474973]
[1644639476095,5.146,97.179,97.12,1.44474973]
[1644639477096,5.146,97.179,97.123,1.44474973]
[1644639477295,5.146,97.179,97.124,1.44474973]
[1644639477496,5.146,97.185,97.124,1.44474973]
[1644639477696,5.146,97.185,97.131,1.44474973]
[1644639477895,23.3524,97.186,97.133,1.44474973]
[1644639478096,51.4773,97.23,97.133,1.44474973]
[1644639478097,5.146,97.228,97.133,1.44474973]
[1644639478305,5.146,97.208,97.141,1.44474973]
[1644639478497,43.6394582,97.207,97.141,1.44474973]
[1644639478698,5.144,97.206,97.141,1.44474973]
[1644639478900,5.144,97.206,97.138,1.44474973]
[1644639479497,5.144,97.206,97.139,1.44474973]
[1644639479718,5.144,97.206,97.138,1.44474973]
[1644639479897,24.6434,97.205,97.137,1.44474973]
[1644639480099,5.144,97.204,97.138,1.44474973]
[1644639480297,24.6434,97.205,97.138,1.44474973]
[1644639480498,24.6434,97.205,97.137,1.44474973]
[1644639480998,15.4433,97.2,97.138,1.44474973]
[1644639481404,5.144,97.199,97.138,1.44474973]
[1644639481697,5.144,97.199,97.14,16.88614973]
[1644639481897,5.144,97.204,97.14,16.88614973]
[1644639482099,5.144,97.204,97.143,1.44474973]
[1644639482304,24.6434,97.205,97.144,6.58874973]
[1644639482499,24.6434,97.205,97.144,1.44474973]
[1644639482707,15.4402,97.22,97.15,15.4396]
[1644639482904,5.144,97.219,97.151,23.4225]
[1644639483106,5.144,97.219,97.152,1.44474973]
[1644639483507,43.9649186,97.218,97.153,45.8648453]
[1644639483706,5.144,97.217,97.153,45.8648453]
[1644639485306,22.7504,97.228,97.153,45.8648453]
[1644639485505,5.144,97.227,97.153,45.8648453]
[1644639486109,36.36387634,97.226,97.153,45.8648453]
[1644639486305,5.144,97.225,97.153,45.8648453]
[1644639486907,15.4403,97.22,97.153,45.8648453]
[1644639487106,5.144,97.219,97.153,45.8648453]
[1644639493729,5.144,97.225,97.153,45.8648453]
[1644639499036,15.4401,97.22,97.153,45.8648453]
[1644639499239,5.144,97.219,97.153,45.8648453]
[1644639501345,15.4401,97.22,97.153,45.8648453]
[1644639502042,36.36387634,97.226,97.153,45.8648453]
[1644639502242,5.144,97.225,97.153,45.8648453]
[1644639503744,15.4401,97.22,97.153,45.8648453]
[1644639505245,15.4401,97.22,97.153,47.30959503]
[1644639505647,15.4401,97.22,97.153,45.8648453]
[1644639505847,15.4401,97.22,97.153,47.30959503]
[1644639506147,15.4401,97.22,97.156,1.44474973]
[1644639507450,5.144,97.219,97.157,1.44474973]
[1644639507648,15.4401,97.22,97.157,1.44474973]
[1644639508253,15.4401,97.22,97.159,1.44474973]
[1644639508455,15.4401,97.22,97.16,1.44474973]
[1644639509856,5.144,97.227,97.16,1.44474973]
[1644639510057,5.144,97.227,97.167,1.44474973]
[1644639510257,22.7504,97.228,97.167,1.44474973]
[1644639510656,22.7504,97.228,97.166,1.44474973]
[1644639510958,66.29825139,97.228,97.165,1.44474973]
[1644639511159,5.144,97.227,97.162,1.44474973]
[1644639512361,5.144,97.227,97.161,1.44474973]
[1644639513360,15.4405,97.22,97.161,1.44474973]
[1644639513568,5.144,97.219,97.161,1.44474973]
[1644639514263,5.144,97.219,97.158,1.44474973]
[1644639514465,5.144,97.227,97.155,1.44474973]
[1644639514665,5.144,97.218,97.155,1.44474973]
[1644639514864,22.78,97.217,97.155,1.44474973]
[1644639515061,5.144,97.216,97.155,1.44474973]
[1644639515763,15.4419,97.21,97.155,1.44474973]
[1644639515963,5.144,97.209,97.155,1.44474973]
[1644639517165,5.144,97.216,97.16,1.44474973]
[1644639517367,5.144,97.216,97.161,1.44474973]
[1644639517568,22.78,97.217,97.162,1.44474973]
[1644639518768,5.144,97.228,97.163,1.44474973]
[1644639518970,5.144,97.229,97.166,1.44474973]
[1644639519169,29.5477,97.245,97.167,1.44474973]
[1644639519375,29.5477,97.245,97.162,5.144]
[1644639519376,29.5477,97.245,97.168,1.44474973]
[1644639519574,29.5477,97.245,97.169,41.9610748]
[1644639519770,15.4371,97.24,97.17,15.4364]
[1644639519971,5.143,97.239,97.17,15.4364]
[1644639522588,5.143,97.239,97.171,1.44474973]
[1644639522987,5.143,97.239,97.17,16.88114973]
[1644639523389,5.143,97.239,97.17,15.4364]
[1644639526593,5.143,97.239,97.17,16.88114973]
[1644639526994,5.143,97.239,97.17,31.76114973]
[1644639527395,5.143,97.239,97.171,5.143]
[1644639527791,5.143,97.239,97.171,6.58774973]
[1644639528191,5.143,97.239,97.171,5.143]
[1644639528392,5.143,97.239,97.171,6.58774973]
[1644639528794,5.143,97.244,97.171,5.143]
[1644639529396,5.143,97.244,97.171,6.58774973]
[1644639529799,5.143,97.244,97.18,15.435]
[1644639530099,24.4037,97.245,97.18,15.435]
[1644639530296,24.4037,97.245,97.181,24.344]
[1644639530898,5.143,97.244,97.181,24.344]
[1644639531096,5.143,97.244,97.18,14.88]
[1644639531297,5.143,97.244,97.171,5.143]
[1644639531499,15.437,97.24,97.171,5.143]
[1644639531697,45.51049263,97.238,97.171,5.143]
[1644639531996,5.143,97.237,97.171,5.143]
[1644639533000,5.143,97.244,97.17,15.4367]
[1644639533199,5.143,97.244,97.17,16.88144973]
[1644639533399,5.143,97.244,97.171,24.1006]
[1644639534400,5.143,97.244,97.172,2.38366791]
[1644639534601,5.143,97.244,97.173,1.44474973]
[1644639534801,5.143,97.244,97.172,2.38366791]
[1644639534802,5.143,97.244,97.172,1.44474973]
[1644639535000,5.143,97.244,97.171,24.1006]
[1644639535203,44.82780755,97.243,97.171,24.1006]
[1644639535401,5.143,97.242,97.171,24.1006]
[1644639544916,15.437,97.24,97.171,24.1006]
[1644639545113,5.143,97.239,97.17,1.44474973]
[1644639545315,5.143,97.242,97.169,41.9610748]
[1644639545516,5.143,97.238,97.169,41.9610748]
[1644639545715,5.143,97.241,97.153,1.44474973]
[1644639545915,6.59318951,97.237,97.147,1.44474973]
[1644639546216,1.44918951,97.233,97.14,0.024]
[1644639546617,15.44,97.23,97.14,0.024]
[1644639546817,23.9367,97.229,97.14,0.024]
[1644639547020,46.8153942,97.228,97.14,0.024]
[1644639547241,5.144,97.227,97.14,0.024]
[1644639547716,15.4411,97.22,97.14,0.024]
[1644639547919,5.144,97.219,97.14,0.024]
[1644639548315,5.144,97.227,97.14,0.024]
[1644639549718,15.4427,97.21,97.14,0.024]
[1644639549918,15.4427,97.21,97.135,48.58633529]
[1644639549919,64.87584429,97.209,97.135,48.58633529]
[1644639552422,64.87584429,97.209,97.135,48.08633529]
[1644639552623,15.4432,97.2,97.135,48.08633529]
[1644639552823,5.144,97.199,97.135,48.08633529]
[1644639553226,5.144,97.208,97.135,48.08633529]
[1644639553825,15.4449,97.19,97.135,48.08633529]
[1644639554024,42.39002568,97.189,97.135,48.08633529]
[1644639554832,66.54772568,97.189,97.135,48.08633529]
[1644639556830,66.54772568,97.189,97.13,0.024]
[1644639557031,15.4465,97.18,97.112,24.5019]
[1644639557231,5.146,97.179,97.112,24.5019]
[1644639557632,24.0313,97.178,97.11,0.024]
[1644639557830,29.1773,97.178,97.093,43.60852822]
[1644639558032,15.4503,97.16,97.1,0.024]
[1644639558235,68.30346201,97.159,97.1,0.024]
[1644639559237,15.4523,97.15,97.1,0.024]
[1644639559438,5.148,97.149,97.093,43.60852822]
[1644639567763,5.148,97.158,97.093,43.60852822]
[1644639568263,5.148,97.158,97.094,23.0073]
[1644639568666,38.04722533,97.157,97.094,23.0073]
[1644639568864,5.147,97.156,97.094,23.0073]
[1644639572173,24.0313,97.159,97.094,23.0073]
[1644639574573,5.147,97.158,97.094,23.0073]
[1644639574777,5.147,97.169,97.1,15.4469]
[1644639574972,24.983,97.179,97.101,5.147]
[1644639575173,30.13,97.179,97.101,5.147]
[1644639575373,30.13,97.179,97.102,1.44474973]
[1644639575673,30.13,97.179,97.103,6.59174973]
[1644639575973,30.13,97.179,97.102,1.44474973]
[1644639576175,30.13,97.179,97.103,6.59174973]
[1644639576379,30.13,97.179,97.104,1.44474973]
[1644639576577,30.13,97.179,97.105,5.147]
[1644639576776,30.13,97.179,97.111,35.19221154]
[1644639576977,30.13,97.179,97.112,28.4372]
[1644639577877,30.13,97.179,97.12,15.4432]
[1644639579277,24.983,97.179,97.12,15.4432]
[1644639579479,5.146,97.178,97.12,15.4432]
[1644639580680,24.983,97.179,97.12,15.4432]
[1644639581179,24.983,97.179,97.121,5.146]
[1644639581478,5.146,97.186,97.121,5.146]
[1644639582978,28.2083,97.186,97.121,5.146]
[1644639589080,15.4467,97.18,97.112,23.2912]
[1644639589282,5.146,97.179,97.112,23.2912]
[1644639591790,15.4483,97.17,97.112,23.2912]
[1644639591994,39.57913196,97.169,97.11,0.024]
[1644639592192,23.4786,97.168,97.102,1.44474973]
[1644639592392,5.147,97.167,97.1,1.46874973]
[1644639592592,5.147,97.167,97.1,0.024]
[1644639592991,5.147,97.167,97.1,47.5199834]
[1644639593191,15.4498,97.16,97.1,47.4959834]
[1644639594495,5.147,97.159,97.1,47.4959834]
[1644639596423,4.147,97.159,97.101,23.5051]
[1644639597624,4.147,97.159,97.09,0.024]
[1644639597823,15.4514,97.15,97.087,1.44474973]
[1644639598024,5.148,97.149,97.083,1.44474973]
[1644639598329,24.3555,97.148,97.081,26.01334973]
[1644639598529,5.148,97.147,97.082,1.44474973]
[1644639598731,45.81337516,97.146,97.083,38.16306943]
[1644639598927,5.148,97.145,97.083,38.16306943]
[1644639602930,24.3555,97.148,97.083,38.16306943]
[1644639605634,5.148,97.169,97.083,38.16306943]
[1644639605833,5.147,97.179,97.09,0.024]
[1644639606034,29.3383,97.186,97.1,0.024]
[1644639606233,5.147,97.178,97.1,0.024]
[1644639606435,45.23548929,97.179,97.101,5.147]
[1644639606636,5.147,97.178,97.103,48.59993384]
[1644639607635,5.147,97.178,97.11,0.024]
[1644639607835,15.4466,97.18,97.11,0.024]
[1644639608238,5.147,97.185,97.11,0.024]
[1644639608239,5.147,97.185,97.11,15.4693]
[1644639608438,5.147,97.185,97.12,0.024]
[1644639609844,24.1913,97.186,97.122,36.12096033]
[1644639610042,24.1913,97.186,97.123,27.9457]
[1644639611148,5.146,97.185,97.123,27.9457]
[1644639612448,5.146,97.185,97.123,22.7997]
[1644639613247,5.146,97.185,97.124,2.38366791]
[1644639613447,5.146,97.212,97.124,7.52966791]
[1644639613646,5.144,97.215,97.124,7.52966791]
[1644639613847,5.144,97.215,97.13,0.024]
[1644639614048,0.03695326,97.21,97.131,5.144]
[1644639614247,15.47555326,97.23,97.15,15.4378]
[1644639614448,0.03695326,97.21,97.152,44.62820014]
[1644639614648,5.144,97.229,97.152,44.62820014]
[1644639614649,0.03695326,97.22,97.153,5.144]
[1644639614854,5.144,97.219,97.152,44.62820014]
[1644639615554,0.03695326,97.22,97.16,15.4377]
[1644639615754,5.144,97.229,97.16,15.4377]
[1644639615956,0.03695326,97.22,97.16,15.4377]
[1644639616160,0.03695326,97.23,97.16,30.3177]
[1644639616357,0.03695326,97.24,97.161,2.38366791]
[1644639616559,0.03695326,97.24,97.18,15.4322]
[1644639616756,0.03695326,97.25,97.18,15.4322]
[1644639617158,0.03695326,97.25,97.181,38.05075023]
[1644639617355,0.03695326,97.25,97.181,40.43441814]
[1644639617559,0.03695326,97.25,97.2,15.4311]
[1644639617757,0.03695326,97.26,97.2,15.4311]
[1644639618056,0.03695326,97.28,97.201,25.11436791]
[1644639618256,0.03695326,97.26,97.202,41.06980329]
[1644639618455,0.03695326,97.28,97.202,41.06980329]
[1644639618659,0.03695326,97.27,97.202,41.06980329]
[1644639618856,5.142,97.269,97.202,41.06980329]
[1644639619756,5.142,97.269,97.21,15.4297]
[1644639621158,0.03695326,97.28,97.21,15.4297]
[1644639622485,0.03695326,97.28,97.211,5.141]
[1644639623687,5.141,97.279,97.21,15.4297]
[1644639623885,0.03695326,97.27,97.203,5.141]
[1644639624087,5.142,97.269,97.202,41.06980329]
[1644639626387,27.7555,97.269,97.202,41.06980329]
[1644639627594,5.17895326,97.28,97.203,7.52566791]
[1644639627788,0.03695326,97.27,97.203,7.52566791]
[1644639627989,28.0743,97.292,97.204,2.38366791]
[1644639627990,0.03695326,97.28,97.204,2.38366791]
[1644639628188,0.03695326,97.28,97.205,5.141]
[1644639628585,0.03695326,97.28,97.206,2.38366791]
[1644639628787,5.141,97.279,97.206,2.38366791]
[1644639628988,0.03695326,97.27,97.206,2.38366791]
[1644639629288,0.03695326,97.27,97.207,5.141]
[1644639629489,0.03695326,97.28,97.21,15.4298]
[1644639629787,0.03695326,97.28,97.211,5.141]
[1644639629991,0.03695326,97.28,97.211,2.38366791]
[1644639630190,0.03695326,97.28,97.212,32.18946791]
[1644639630390,0.03695326,97.28,97.212,27.04846791]
[1644639630596,0.03695326,97.28,97.213,7.52466791]
[1644639630791,0.03695326,97.28,97.23,15.4269]
[1644639630989,0.03695326,97.29,97.23,15.4269]
[1644639631191,0.03695326,97.29,97.231,2.38366791]
[1644639631391,0.03695326,97.29,97.232,5.14]
[1644639631594,0.03695326,97.29,97.233,34.54639428]
[1644639631790,0.03695326,97.29,97.234,5.14]
[1644639633094,5.14,97.289,97.233,34.54639428]
[1644639633792,5.14,97.291,97.233,34.54639428]
[1644639633993,5.14,97.288,97.233,34.54639428]
[1644639634193,5.17695326,97.29,97.233,34.54639428]
[1644639634392,0.03695326,97.29,97.233,34.54639428]
[1644639634592,5.14,97.289,97.233,34.54639428]
[1644639634792,15.4306,97.28,97.233,34.54639428]
[1644639634993,5.141,97.279,97.233,34.54639428]
[1644639635595,5.141,97.289,97.233,34.54639428]
[1644639636794,15.4321,97.27,97.233,34.54639428]
[1644639636995,5.141,97.269,97.233,34.54639428]
[1644639637394,5.141,97.269,97.191,23.0935]
[1644639637596,0.03695326,97.26,97.191,23.0935]
[1644639637795,0.03695326,97.26,97.18,15.4336]
[1644639637996,5.142,97.259,97.18,15.4336]
[1644639638199,15.47245326,97.25,97.173,24.0036]
[1644639638497,15.47245326,97.25,97.174,41.0191764]
[1644639638498,49.48351039,97.249,97.174,41.0191764]
[1644639639795,15.4392,97.23,97.174,41.0191764]
[1644639640803,15.437,97.24,97.174,41.0191764]
[1644639641021,22.8858,97.248,97.174,41.0191764]
[1644639641022,5.143,97.239,97.174,41.0191764]
[1644639641199,5.143,97.246,97.174,41.0191764]
[1644639641399,22.8858,97.248,97.174,41.0191764]
[1644639642399,22.8858,97.248,97.18,15.4347]
[1644639642600,5.143,97.247,97.181,5.143]
[1644639642800,22.8858,97.248,97.181,5.143]
[1644639645803,0.03695326,97.25,97.19,15.433]
[1644639646203,0.03695326,97.25,97.191,5.142]
[1644639646402,23.9668,97.259,97.191,5.142]
[1644639646601,23.9668,97.259,97.192,41.64560801]
[1644639647004,23.9668,97.259,97.193,5.142]
[1644639647803,23.9668,97.259,97.2,15.4315]
[1644639648204,0.03695326,97.26,97.2,15.4315]
[1644639648408,0.03695326,97.26,97.201,7.52566791]
[1644639648611,5.142,97.289,97.201,2.38366791]
[1644639648803,5.142,97.289,97.194,27.839]
[1644639648804,0.03695326,97.27,97.21,14.88]
[1644639649008,0.03695326,97.28,97.21,14.88]
[1644639649205,0.03695326,97.29,97.211,5.141]
[1644639649408,0.03695326,97.28,97.212,68.88658137]
[1644639649606,39.91368118,97.289,97.212,68.88658137]
[1644639649807,0.03695326,97.28,97.212,68.88658137]
[1644639650206,5.141,97.279,97.212,68.88658137]
[1644639650408,0.03695326,97.28,97.212,68.88658137]
[1644639651510,0.03695326,97.28,97.22,15.4281]
[1644639651709,0.03695326,97.29,97.22,15.4281]
[1644639651909,0.03695326,97.28,97.221,5.141]
[1644639652111,0.03695326,97.29,97.22,15.4281]
[1644639652308,5.141,97.279,97.22,15.4281]
[1644639652509,0.03695326,97.29,97.22,15.4281]
[1644639652716,5.141,97.279,97.22,15.4281]
[1644639652910,0.03695326,97.29,97.22,15.4281]
[1644639653110,5.141,97.279,97.22,15.4281]
[1644639653311,0.03695326,97.28,97.22,15.4281]
[1644639653514,0.03695326,97.29,97.22,15.4281]
[1644639653712,0.03695326,97.28,97.22,15.4281]
[1644639653911,0.03695326,97.29,97.22,15.4281]
[1644639654110,0.03695326,97.28,97.22,15.4281]
[1644639654312,0.03695326,97.29,97.22,15.4281]
[1644639654512,0.03695326,97.28,97.22,15.4281]
[1644639654712,0.03695326,97.29,97.22,15.4281]
[1644639654913,0.03695326,97.28,97.22,15.4281]
[1644639655114,5.17795326,97.29,97.22,15.4281]
[1644639655314,0.03695326,97.28,97.212,68.88658137]
[1644639655718,5.141,97.279,97.212,68.88658137]
[1644639656830,5.141,97.279,97.212,45.10208137]
[1644639658734,15.4324,97.27,97.212,45.10208137]
[1644639658934,5.141,97.269,97.212,45.10208137]
[1644639662233,15.4338,97.26,97.212,45.10208137]
[1644639662434,35.6437655,97.258,97.212,45.10208137]
[1644639662637,5.142,97.257,97.212,45.10208137]
[1644639663841,15.4354,97.25,97.212,45.10208137]
[1644639666541,15.4372,97.24,97.212,45.10208137]
[1644639666841,15.4372,97.24,97.171,5.142]
[1644639667041,15.4372,97.24,97.159,1.44474973]
[1644639667042,5.143,97.239,97.152,1.44474973]
[1644639667241,5.143,97.239,97.151,22.6463]
[1644639667641,5.143,97.239,97.152,37.45618766]
[1644639667841,5.143,97.239,97.153,5.144]
[1644639668040,5.143,97.239,97.16,15.4374]
[1644639668241,0.03695326,97.24,97.161,5.144]
[1644639668441,0.03695326,97.24,97.161,28.7111]
[1644639668643,0.03695326,97.24,97.161,23.5671]
[1644639668845,0.03695326,97.24,97.162,5.144]
[1644639669141,5.143,97.239,97.161,23.5671]
[1644639669740,5.143,97.239,97.17,15.4354]
[1644639669941,0.03695326,97.24,97.171,53.5133722]
[1644639670142,0.03695326,97.24,97.172,22.6262]
[1644639670342,0.03695326,97.24,97.173,5.143]
[1644639671144,15.47395326,97.24,97.173,5.143]
[1644639671544,5.143,97.239,97.173,5.143]
[1644639674244,5.143,97.239,97.172,22.6262]
[1644639675547,0.03695326,97.24,97.172,22.6262]
[1644639677853,5.143,97.239,97.18,15.4345]
[1644639678952,5.143,97.239,97.172,22.6262]
[1644639681160,15.47395326,97.24,97.172,22.6262]
[1644639682761,45.51542002,97.239,97.172,22.6262]
[1644639682963,5.143,97.238,97.172,22.6262]
[1644639683462,15.47395326,97.24,97.172,22.6262]
[1644639683463,24.2193,97.237,97.172,22.6262]
[1644639683664,5.143,97.236,97.172,22.6262]
[1644639683862,5.143,97.238,97.172,22.6262]
[1644639684061,5.143,97.249,97.172,22.6262]
[1644639684762,5.143,97.249,97.18,15.4344]
[1644639684962,0.03695326,97.25,97.181,5.143]
[1644639685161,0.03695326,97.25,97.181,7.52666791]
[1644639685363,51.4395,97.3,97.181,7.52666791]
[1644639685364,0.03695326,97.26,97.181,2.38366791]
[1644639685562,0.03695326,97.25,97.182,5.142]
[1644639685763,0.03695326,97.26,97.183,22.9245]
[1644639685964,0.03695326,97.25,97.183,25.30816791]
[1644639686164,5.142,97.259,97.191,34.87824657]
[1644639686363,0.03695326,97.25,97.191,34.87824657]
[1644639686562,5.142,97.259,97.191,34.87824657]
[1644639686763,0.03695326,97.25,97.192,2.38366791]
[1644639686966,0.03695326,97.26,97.192,2.38366791]
[1644639687163,0.03695326,97.25,97.192,2.38366791]
[1644639687363,0.03695326,97.26,97.193,22.6274]
[1644639687565,0.03695326,97.28,97.193,22.6274]
[1644639687764,49.93289495,97.287,97.193,25.01106791]
[1644639687964,0.03695326,97.27,97.193,25.01106791]
[1644639688166,0.03695326,97.28,97.193,25.01106791]
[1644639688365,0.03695326,97.26,97.193,25.01106791]
[1644639688565,0.03695326,97.28,97.193,25.01106791]
[1644639688763,5.142,97.279,97.2,15.4308]
[1644639689067,0.03695326,97.27,97.201,22.7462]
[1644639689569,5.142,97.269,97.201,22.7462]
[1644639689787,0.03695326,97.27,97.201,22.7462]
[1644639690185,5.142,97.269,97.201,22.7462]
[1644639690682,5.142,97.269,97.211,37.98261147]
[1644639693084,0.03695326,97.27,97.211,37.98261147]
[1644639693285,0.03695326,97.28,97.211,37.98261147]
[1644639693584,0.03695326,97.27,97.211,37.98261147]
[1644639693788,0.03695326,97.28,97.211,37.98261147]
[1644639693987,0.03695326,97.27,97.211,37.98261147]
[1644639694186,0.03695326,97.28,97.211,37.98261147]
[1644639694389,0.03695326,97.27,97.211,37.98261147]
[1644639694588,0.03695326,97.28,97.211,37.98261147]
[1644639694885,0.03695326,97.27,97.211,37.98261147]
[1644639695084,0.03695326,97.28,97.211,37.98261147]
[1644639695287,0.03695326,97.27,97.211,37.98261147]
[1644639695489,0.03695326,97.28,97.211,37.98261147]
[1644639695786,0.03695326,97.27,97.211,37.98261147]
[1644639695989,0.03695326,97.28,97.212,5.141]
[1644639696287,0.03695326,97.27,97.212,5.141]
[1644639696486,0.03695326,97.28,97.22,15.4281]
[1644639696687,0.03695326,97.27,97.22,15.4281]
[1644639696887,0.03695326,97.28,97.22,15.4281]
[1644639699288,5.141,97.279,97.22,15.4281]
[1644639699489,48.23099898,97.279,97.22,15.4281]
[1644639699890,48.23099898,97.279,97.213,24.4378]
[1644639701993,5.141,97.279,97.213,24.4378]
[1644639702996,34.27775619,97.278,97.213,24.4378]
[1644639703196,5.141,97.277,97.213,24.4378]
[1644639705397,0.03695326,97.28,97.213,24.4378]
[1644639709005,5.141,97.279,97.213,24.4378]
[1644639709205,5.141,97.279,97.22,15.4281]
[1644639709805,5.141,97.279,97.213,24.4378]
[1644639712310,5.141,97.279,97.201,5.141]
[1644639712612,0.98614277,97.276,97.201,5.141]
[1644639712810,0.03720614,97.27,97.201,5.141]
[1644639713213,5.142,97.269,97.201,5.141]
[1644639713409,5.142,97.269,97.202,39.56967227]
[1644639713609,23.7152,97.268,97.202,39.56967227]
[1644639713810,15.4362,97.25,97.202,39.56967227]
[1644639715312,5.142,97.249,97.202,39.56967227]
[1644639717012,5.142,97.254,97.202,39.56967227]
[1644639718615,15.4356,97.25,97.202,39.56967227]
[1644639718816,5.142,97.249,97.202,39.56967227]
[1644639722817,5.142,97.254,97.202,39.56967227]
[1644639725540,5.142,97.259,97.202,39.56967227]